Department Family,Entity,Date,Expenses Type,Expense Area,Supplier,Transaction Number, Total 
Department of Health,The Christie NHS Foundation Trust,03/08/2018,Drugs,Drugs,ALCURA UK LIMITED,0000589881," 72,031.05 "
Department of Health,The Christie NHS Foundation Trust,23/08/2018,PET Scans - Jul-18,Christie Medical Physics,ALLIANCE MEDICAL LTD,0000590757," 148,785.00 "
Department of Health,The Christie NHS Foundation Trust,01/08/2018,Drugs,Drugs,BAXTER HEALTHCARE LTD,0000591346," 336,207.60 "
Department of Health,The Christie NHS Foundation Trust,02/08/2018,Drugs,Drugs,BAXTER HEALTHCARE LTD,0000588599," 357,654.49 "
Department of Health,The Christie NHS Foundation Trust,02/08/2018,Drugs,Drugs,BAXTER HEALTHCARE LTD,0000588595," 440,062.34 "
Department of Health,The Christie NHS Foundation Trust,02/08/2018,Drugs,Drugs,BAXTER HEALTHCARE LTD,0000588604," 43,149.17 "
Department of Health,The Christie NHS Foundation Trust,02/08/2018,Drugs,Drugs,BAXTER HEALTHCARE LTD,0000588598," 462,855.30 "
Department of Health,The Christie NHS Foundation Trust,02/08/2018,Drugs,Drugs,BAXTER HEALTHCARE LTD,0000588485," 370,099.62 "
Department of Health,The Christie NHS Foundation Trust,02/08/2018,Drugs,Drugs,BAXTER HEALTHCARE LTD,0000588483," 416,439.66 "
Department of Health,The Christie NHS Foundation Trust,02/08/2018,Drugs,Drugs,BAXTER HEALTHCARE LTD,0000588594," 389,579.21 "
Department of Health,The Christie NHS Foundation Trust,16/08/2018,Drugs,Drugs,BAXTER HEALTHCARE LTD,0000589154," 404,155.40 "
Department of Health,The Christie NHS Foundation Trust,23/08/2018,Drugs,Drugs,BAXTER HEALTHCARE LTD,0000590532," 488,439.78 "
Department of Health,The Christie NHS Foundation Trust,23/08/2018,Drugs,Drugs,BAXTER HEALTHCARE LTD,0000590621," 429,774.08 "
Department of Health,The Christie NHS Foundation Trust,30/08/2018,Drugs,Drugs,BAXTER HEALTHCARE LTD,0000590622," 527,276.20 "
Department of Health,The Christie NHS Foundation Trust,02/08/2018,Drugs,Drugs,BOLTON NHS FOUNDATION TRUST,0000563747," 36,693.24 "
Department of Health,The Christie NHS Foundation Trust,02/08/2018,Drugs,Drugs,BOLTON NHS FOUNDATION TRUST,0000584149," 37,081.69 "
Department of Health,The Christie NHS Foundation Trust,02/08/2018,Drugs,Drugs,BOLTON NHS FOUNDATION TRUST,0000587918," 41,019.19 "
Department of Health,The Christie NHS Foundation Trust,23/08/2018,Medical Equipment Maintenance Contract,Clinical Support & Specialist Surgery,CPP FACILITIES LLP,0000589524," 201,563.09 "
Department of Health,The Christie NHS Foundation Trust,23/08/2018,Medical Equipment Maintenance Contract,Clinical Support & Specialist Surgery,CPP FACILITIES LLP,0000589525," 194,475.02 "
Department of Health,The Christie NHS Foundation Trust,23/08/2018,Medical Equipment Maintenance Contract,Clinical Support & Specialist Surgery,CPP FACILITIES LLP,0000587877," 174,671.29 "
Department of Health,The Christie NHS Foundation Trust,30/08/2018,Medical Equipment Maintenance Contract,Clinical Support & Specialist Surgery,CPP FACILITIES LLP,0000590085," 174,671.29 "
Department of Health,The Christie NHS Foundation Trust,16/08/2018,Installation of Non Medical Equipment,Capital,DIRECT COOLING LIMITED,0000590779," 41,720.02 "
Department of Health,The Christie NHS Foundation Trust,23/08/2018,Installation of Non Medical Equipment,Capital,DIRECT COOLING LIMITED,0000590786," 43,915.80 "
Department of Health,The Christie NHS Foundation Trust,23/08/2018,Energy Contract PBT1 Jul-18,Network Services,EDF ENERGY,0000590324," 46,750.92 "
Department of Health,The Christie NHS Foundation Trust,02/08/2018,Linac Development,Capital,ELEKTA  LTD,0000586383," 57,000.00 "
Department of Health,The Christie NHS Foundation Trust,16/08/2018,Medical Equipment,Clinical Support & Specialist Surgery,GE MEDICAL SYSTEMS LTD,0000589477," 27,099.20 "
Department of Health,The Christie NHS Foundation Trust,23/08/2018,Medical Equipment,Christie Medical Physics,IMAGING EQUIPMENT LTD,0000589467," 40,122.00 "
Department of Health,The Christie NHS Foundation Trust,30/08/2018,Medical Equipment,Christie Medical Physics,IMAGING EQUIPMENT LTD,0000590840," 30,666.00 "
Department of Health,The Christie NHS Foundation Trust,23/08/2018,Proton Beam Development (PBT),Capital,INTERSERVE CONSTRUCTION LTD,0000591718," 826,238.59 "
Department of Health,The Christie NHS Foundation Trust,09/08/2018,Chemotherapy Prescribing system - Jul-Sep-18,Finance & Business Development,IQ HEALTH TECH LTD,0000587176," 39,000.00 "
Department of Health,The Christie NHS Foundation Trust,16/08/2018,Drugs,Drugs,LLOYDSPHARMACY CLINICAL HOMECARE,0000591305," 36,814.48 "
Department of Health,The Christie NHS Foundation Trust,07/08/2018,Rates 18/19,Estates & Facilities,M/CR CITY COUNCIL (RATES) DD,0000592270," 76,032.00 "
Department of Health,The Christie NHS Foundation Trust,16/08/2018,Critical Care May-18,Clinical Support & Specialist Surgery,MANCHESTER UNIVERSITY NHS FT,0000585231," 29,638.25 "
Department of Health,The Christie NHS Foundation Trust,16/08/2018,Anaesthetics May-18,Clinical Support & Specialist Surgery,MANCHESTER UNIVERSITY NHS FT,0000585235," 27,148.17 "
Department of Health,The Christie NHS Foundation Trust,16/08/2018,Clinical Nurse Recharge Apr-Jun-18,Clinical Support & Specialist Surgery,MANCHESTER UNIVERSITY NHS FT,0000587966," 28,211.69 "
Department of Health,The Christie NHS Foundation Trust,23/08/2018,Critical Care Jun-18,Clinical Support & Specialist Surgery,MANCHESTER UNIVERSITY NHS FT,0000587991," 29,638.25 "
Department of Health,The Christie NHS Foundation Trust,23/08/2018,Anaesthetics Jun-18,Clinical Support & Specialist Surgery,MANCHESTER UNIVERSITY NHS FT,0000590101," 27,148.17 "
Department of Health,The Christie NHS Foundation Trust,16/08/2018,Macmillan Service Jul-18,Network Services,MID CHESHIRE HOSPITALS NHS FT,0000588080," 45,375.83 "
Department of Health,The Christie NHS Foundation Trust,09/08/2018,Blood Products,Network Services,NHS BLOOD AND TRANSPLANT,0000589006," 34,348.76 "
Department of Health,The Christie NHS Foundation Trust,09/08/2018,Blood Products,Network Services,NHS BLOOD AND TRANSPLANT,0000578943," 38,912.63 "
Department of Health,The Christie NHS Foundation Trust,09/08/2018,Blood Products,Network Services,NHS BLOOD AND TRANSPLANT,0000586335," 36,067.51 "
Department of Health,The Christie NHS Foundation Trust,15/08/2018,Blood Products,Network Services,NHS BLOOD AND TRANSPLANT,0000591659," 182,293.80 "
Department of Health,The Christie NHS Foundation Trust,15/08/2018,NHS Litigation (NHSLA),Finance & Business Development,NHS LITIGATION AUTHORITY,0000591518," 93,092.10 "
Department of Health,The Christie NHS Foundation Trust,23/08/2018,Stock for all Wards & Departments,All Wards and Departments,NHS SUPPLY CHAIN,0000589428," 35,800.39 "
Department of Health,The Christie NHS Foundation Trust,30/08/2018,Stock for all Wards & Departments,All Wards and Departments,NHS SUPPLY CHAIN,0000590276," 46,125.16 "
Department of Health,The Christie NHS Foundation Trust,30/08/2018,Medical Equipment,Clinical Support & Specialist Surgery,NHS SUPPLY CHAIN,0000590620," 173,205.06 "
Department of Health,The Christie NHS Foundation Trust,16/08/2018,Proton Beam Development (PBT),Capital,ONCOLOGY IMAGING SYSTEMS LTD,0000588840," 57,270.00 "
Department of Health,The Christie NHS Foundation Trust,30/08/2018,Software Licences,Capital,RAYSEARCH UK LTD,0000591748," 323,000.00 "
Department of Health,The Christie NHS Foundation Trust,23/08/2018,Audit Services,Finance & Business Development,ROYAL LIVERPOOL & BROADGREEN NHS TRUST,0000586284," 25,662.00 "
Department of Health,The Christie NHS Foundation Trust,23/08/2018,Maintenance Jul-18 to Jun-19,Network Services,SCHNEIDER ELECTRIC LTD,0000590134," 26,135.00 "
Department of Health,The Christie NHS Foundation Trust,23/08/2018,Maintenance Jul-18 to Jun-19,Estates & Facilities,SCHNEIDER ELECTRIC LTD,0000590392," 61,978.00 "
Department of Health,The Christie NHS Foundation Trust,16/08/2018,Installation and Training of medical equipment,Capital,SIEMENS HEALTHCARE LIMITED,0000588891," 40,960.00 "
Department of Health,The Christie NHS Foundation Trust,09/08/2018,Software Licences,Capital,SOFTCAT PLC,0000588284," 100,429.05 "
Department of Health,The Christie NHS Foundation Trust,16/08/2018,Software Licences,Capital,SOFTCAT PLC,0000589450," 88,635.36 "
Department of Health,The Christie NHS Foundation Trust,16/08/2018,Software Licences,Finance & Business Development,SOFTCAT PLC,0000589201," 42,930.00 "
Department of Health,The Christie NHS Foundation Trust,23/08/2018,Software Licences,Capital,SOFTCAT PLC,0000588713," 40,953.00 "
Department of Health,The Christie NHS Foundation Trust,23/08/2018,Software Licences,Finance & Business Development,SOFTCAT PLC,0000589562," 144,824.52 "
Department of Health,The Christie NHS Foundation Trust,23/08/2018,Medical Equipment,Capital,STANLEY SECURITY SOLUTIONS LTD,0000591523," 28,862.40 "
Department of Health,The Christie NHS Foundation Trust,02/08/2018,Medway System Support - Jun-18,Finance & Business Development,SYSTEM C HEALTHCARE,0000587623," 23,680.00 "
Department of Health,The Christie NHS Foundation Trust,02/08/2018,Drugs,Drugs,THE CHRISTIE CLINIC (HCA),0000588011," 34,809.00 "
Department of Health,The Christie NHS Foundation Trust,23/08/2018,Patient Testing Service ,Clinical Support & Specialist Surgery,THE CHRISTIE PATHOLOGY PARTNERSHIP LLP,0000587874," 367,545.91 "
Department of Health,The Christie NHS Foundation Trust,30/08/2018,Patient Testing Service ,Clinical Support & Specialist Surgery,THE CHRISTIE PATHOLOGY PARTNERSHIP LLP,0000590084," 367,545.91 "
Department of Health,The Christie NHS Foundation Trust,30/08/2018,Christie @ Oldham - Jul-18 to Sep-18,Estates & Facilities,THE PENNINE ACUTE HOSPITAL NHS TRUST,0000591717," 38,140.50 "
Department of Health,The Christie NHS Foundation Trust,23/08/2018,Research Project,Research & Developmentent,UNIVERSITY OF MANCHESTER,0000589916," 46,557.60 "
Department of Health,The Christie NHS Foundation Trust,16/08/2018,Energy Contract - May-18,Estates & Facilities,VEOLIA ENERGY &UTILITY SERVICES UK PLC,0000587421," 220,117.09 "
Department of Health,The Christie NHS Foundation Trust,23/08/2018,Energy Contract - Jun-18,Estates & Facilities,VEOLIA ENERGY &UTILITY SERVICES UK PLC,0000589038," 292,843.76 "
Department of Health,The Christie NHS Foundation Trust,23/08/2018,New build furniture,Capital,WAGSTAFF INTERIORS GROUP,0000588815," 94,737.60 "
Department of Health,The Christie NHS Foundation Trust,02/08/2018,Christie @ Wigan - Jul-18,Network Services,WRIGHTINGTON WIGAN AND LEIGH NHS FT,0000588714," 231,448.00 "
Department of Health,The Christie NHS Foundation Trust,02/08/2018,Christie @ Wigan - Jun-18,Network Services,WRIGHTINGTON WIGAN AND LEIGH NHS FT,0000587540," 231,448.00 "
Department of Health,The Christie NHS Foundation Trust,30/08/2018,Christie @ Wigan - Aug-18,Network Services,WRIGHTINGTON WIGAN AND LEIGH NHS FT,0000591658," 231,448.00 "
